[Event "European Womens-ch 2025"]
[Site "Rhodes"]
[Date "2025.04.05"]
[Round "6.51"]
[White "Kiousi, Panagiota"]
[Black "Cornileau, Juliette"]
[Result "0-1"]
[Annotator "ChessBase"]
[ECO "E01"]
[WhiteElo "1998"]
[BlackElo "2130"]
[PlyCount "112"]
[EventDate "2025.03.29"]
[EventType "swiss"]
[EventCountry "GRE"]
[SourceTitle "playchess.com"]
[Source "ChessBase"]
[SourceQuality "1"]
[TimeControl "40/5400+30:1800+30"]

1. d4 {[%emt 1:31:00]} Nf6 {[%emt 1:31:00]} 2. c4 {[%emt 0:00:30]} e6 {[%emt 0:00:30]} 3. Nf3 {[%emt 0:00:30]} d5 {[%emt 0:00:30]} 4. g3 {[%emt 0:00:30]} Nc6 {[%emt 0:00:30]} 5. Nbd2 {[%emt 0:00:30]} Be7 {[%emt 0:00:30]} 6. Bg2 {[%emt 0:00:30]} O-O {[%emt 0:00:30]} 7. O-O {[%emt 0:00:30]} b6 {[%emt 0:00:30]} 8. cxd5 {[%emt 0:00:30]} exd5 {[%emt 0:00:30]} 9. Qa4 {[%emt 0:00:30]} Bd7 {[%emt 0:00:30]} 10. Qd1 {[%emt 0:00:30]} Bf5 {[%emt 0:00:30]} 11. a3 {[%emt 0:00:30]} a5 {[%emt 0:00:30]} 12. b3 {[%emt 0:00:30]} Ne4 {[%emt 0:00:30]} 13. Bb2 {[%emt 0:00:30]} Bf6 {[%emt 0:00:30]} 14. Ne5 {[%emt 0:00:30]} Bxe5 {[%emt 0:00:30]} 15. dxe5 {[%emt 0:00:30]} Nc5 {[%emt 0:00:30]} 16. Rc1 {[%emt 0:00:30]} Qd7 {[%emt 0:00:30]} 17. Nf3 {[%emt 0:00:30]} Be4 {[%emt 0:00:30]} 18. Ne1 {[%emt 0:00:30]} Bxg2 {[%emt 0:00:30]} 19. Nxg2 {[%emt 0:00:30]} Rfe8 {[%emt 0:00:30]} 20. f4 {[%emt 0:00:30]} d4 {[%emt 0:00:30]} 21. Rc4 {[%emt 0:00:30]} Red8 {[%emt 0:00:30]} 22. Qc2 {[%emt 0:00:30]} d3 {[%emt 0:00:30]} 23. exd3 {[%emt 0:00:30]} Qxd3 {[%emt 0:00:30]} 24. Qxd3 {[%emt 0:00:30]} Rxd3 {[%emt 0:00:30]} 25. b4 {[%emt 0:00:30]} axb4 {[%emt 0:00:30]} 26. axb4 {[%emt 0:00:30]} Ra4 {[%emt 0:00:30]} 27. Ra1 {[%emt 0:00:30]} Rxa1+ {[%emt 0:00:30]} 28. Bxa1 {[%emt 0:00:30]} Nxb4 {[%emt 0:00:30]} 29. Bd4 {[%emt 0:00:30]} Rd1+ {[%emt 0:00:30]} 30. Kf2 {[%emt 0:00:30]} Nbd3+ {[%emt 0:00:30]} 31. Ke2 {[%emt 0:00:30]} Rh1 {[%emt 0:00:30]} 32. h4 {[%emt 0:00:30]} Rc1 {[%emt 0:00:30]} 33. Rxc1 {[%emt 0:00:30]} Nxc1+ {[%emt 0:00:30]} 34. Ke3 {[%emt 0:00:30]} N1b3 {[%emt 0:00:30]} 35. f5 {[%emt 0:00:30]} Kf8 {[%emt 0:00:30]} 36. Nf4 {[%emt 0:00:30]} g6 {[%emt 0:00:30]} 37. g4 {[%emt 0:00:30]} gxf5 {[%emt 0:00:30]} 38. gxf5 Nxd4 {[%emt 0:00:30]} 39. Kxd4 {[%emt 0:01:00]} c6 {[%emt 0:00:30]} 40. Nh5 {[%emt 0:00:30]} Nd7 {[%emt 0:00:30]} 41. f6 {[%emt 0:30:30]} b5 {[%emt 0:30:30]} 42. Ng3 {[%emt 0:00:30]} b4 {[%emt 0:00:30]} 43. Ne4 {[%emt 0:00:30]} b3 {[%emt 0:00:30]} 44. Kc3 {[%emt 0:00:30]} Nxe5 {[%emt 0:00:30]} 45. Kxb3 {[%emt 0:00:30]} Ke8 {[%emt 0:00:30]} 46. Kb4 {[%emt 0:00:30]} Kd7 {[%emt 0:00:30]} 47. Kc5 {[%emt 0:00:30]} h6 {[%emt 0:00:30]} 48. Ng3 {[%emt 0:00:30]} Ke6 {[%emt 0:00:30]} 49. Nh5 {[%emt 0:00:30]} Kf5 {[%emt 0:00:30]} 50. Kd6 {[%emt 0:00:30]} Kg6 {[%emt 0:00:30]} 51. Nf4+ {[%emt 0:00:30]} Kxf6 {[%emt 0:00:30]} 52. Nh5+ {[%emt 0:00:30]} Kf5 {[%emt 0:00:30]} 53. Ng3+ {[%emt 0:00:30]} Kg4 {[%emt 0:00:30]} 54. Ne4 {[%emt 0:00:30]} Ng6 {[%emt 0:00:30]} 55. Kxc6 {[%emt 0:00:30]} f5 {[%emt 0:00:30]} 56. h5 {[%emt 0:00:30]} Ne5+ {[%emt 0:00:30]} 0-1

[Event "European Womens-ch 2025"]
[Site "Rhodes"]
[Date "2025.04.05"]
[Round "6.52"]
[White "Dicen, Elis Denele"]
[Black "Kosma, Maria"]
[Result "1/2-1/2"]
[Annotator "NA"]
[ECO "E06"]
[WhiteElo "2129"]
[BlackElo "1826"]
[PlyCount "137"]
[EventDate "2025.03.29"]
[EventType "swiss"]
[EventCountry "GRE"]
[SourceTitle "playchess.com"]
[Source "ChessBase"]
[SourceQuality "1"]
[TimeControl "40/5400+30:1800+30"]

1. d4 {[%emt 0:00:03]} Nf6 {[%emt 0:00:08]} 2. c4 {[%emt 0:00:06]} e6 {[%emt 0:00:10]} 3. g3 {[%emt 0:00:06]} d5 {[%emt 0:00:16]} 4. Bg2 {[%emt 0:00:13]} Be7 {[%emt 0:00:08]} 5. Nf3 {[%emt 0:00:09]} O-O {[%emt 0:00:26]} 6. O-O {[%emt 0:00:08]} a5 {[%emt 0:00:04]} 7. Qc2 {[%emt 0:00:59]} c6 {[%emt 0:00:14]} 8. Nbd2 {[%emt 0:00:53]} b6 {[%emt 0:00:21]} 9. e4 {[%emt 0:02:41]} c5 {[%emt 0:00:35]} 10. e5 {[%emt 0:17:50]} Nfd7 {[%emt 0:05:04]} 11. dxc5 {[%emt 0:05:32]} bxc5 {[%emt 0:09:02]} 12. Re1 {[%emt 0:03:15]} Nc6 {[%emt 0:02:52]} 13. b3 {[%emt 0:05:59]} Qc7 {[%emt 0:05:14]} 14. Bb2 {[%emt 0:03:04]} d4 {[%emt 0:08:41]} 15. Nf1 {[%emt 0:07:42]} Bb7 {[%emt 0:02:39]} 16. Qe2 {[%emt 0:01:41]} Rfd8 {[%emt 0:05:00]} 17. h4 {[%emt 0:07:41]} a4 {[%emt 0:07:07]} 18. N1h2 {[%emt 0:03:58]} Nb4 {[%emt 0:05:01]} 19. Red1 {[%emt 0:10:15]} axb3 {[%emt 0:05:20]} 20. axb3 {[%emt 0:00:39]} Rxa1 {[%emt 0:04:39]} 21. Rxa1 {[%emt 0:01:01]} Ra8 {[%emt 0:03:00]} 22. h5 {[%emt 0:05:18]} Rxa1+ {[%emt 0:01:01]} 23. Bxa1 {[%emt 0:00:07]} Qa5 {[%emt 0:00:14]} 24. Qd1 {[%emt 0:01:56]} Qa2 {[%emt 0:00:12]} 25. Qc1 {[%emt 0:11:52]} Qxf2+ {[%emt 0:04:44]} 26. Kxf2 {[%emt 0:00:26]} Nd3+ {[%emt 0:00:02]} 27. Kf1 {[%emt 0:00:40]} Nxc1 {[%emt 0:00:04]} 28. b4 {[%emt 0:03:19]} Nb3 {[%emt 0:02:02]} 29. Bb2 {[%emt 0:00:19]} cxb4 {[%emt 0:00:03]} 30. Nxd4 {[%emt 0:01:22]} Bxg2+ {[%emt 0:01:24]} 31. Kxg2 {[%emt 0:00:08]} Na5 {[%emt 0:00:31]} 32. Nhf3 {[%emt 0:01:57]} Nxc4 {[%emt 0:00:04]} 33. Bc1 {[%emt 0:00:30]} Nc5 {[%emt 0:00:50]} 34. Nc6 {[%emt 0:00:35]} b3 {[%emt 0:07:33]} 35. Nxe7+ {[%emt 0:02:01]} Kf8 {[%emt 0:00:01]} 36. Nc6 {[%emt 0:00:11]} Nd3 {[%emt 0:00:32]} 37. Bb2 {[%emt 0:01:11]} Ncxb2 {[%emt 0:02:12]} 38. Nd2 {[%emt 0:00:29]} Nc1 {[%emt 0:00:27]} 39. Nd4 {[%emt 0:00:35]} Nbd3 {[%emt 0:00:07]} 40. N2xb3 {[%emt 0:00:00]} Nxb3 {[%emt 0:00:00]} 41. Nxb3 {[%emt 0:00:38]} Nxe5 {[%emt 0:00:09]} 42. Kh3 {[%emt 0:00:27]} f5 {[%emt 0:00:03]} 43. Nd4 {[%emt 0:00:09]} Ke7 {[%emt 0:00:03]} 44. Kh4 {[%emt 0:00:44]} Kf6 {[%emt 0:00:32]} 45. Kh3 {[%emt 0:00:58]} Ng4 {[%emt 0:00:03]} 46. Nf3 {[%emt 0:00:19]} e5 {[%emt 0:00:04]} 47. Kh4 {[%emt 0:00:27]} e4 {[%emt 0:00:04]} 48. Ne1 {[%emt 0:00:21]} e3 {[%emt 0:00:06]} 49. h6 {[%emt 0:00:59]} e2 {[%emt 0:00:43]} 50. hxg7 {[%emt 0:00:40]} Nh6 {[%emt 0:03:42]} 51. Kh3 {[%emt 0:13:48]} Kxg7 {[%emt 0:07:08]} 52. Kg2 {[%emt 0:00:28]} Nf7 {[%emt 0:45:49]} 53. Kf3 {[%emt 0:00:16]} Kf6 {[%emt 0:00:00]} 54. Kxe2 {[%emt 0:00:25]} Ng5 {[%emt 0:00:00]} 55. Ke3 {[%emt 0:00:40]} Ne6 {[%emt 0:00:00]} 56. Nd3 {[%emt 0:01:42]} Kg5 {[%emt 0:00:00]} 57. Ne5 {[%emt 0:01:40]} Kf6 {[%emt 0:00:00]} 58. Nd7+ {[%emt 0:00:36]} Kg6 {[%emt 0:00:00]} 59. Ne5+ {[%emt 0:00:32]} Kg5 {[%emt 0:00:00]} 60. Kf3 {[%emt 0:00:30]} Nd4+ {[%emt 0:00:00]} 61. Ke3 {[%emt 0:00:48]} Nb5 {[%emt 0:00:00]} 62. Kf3 {[%emt 0:00:32]} Nd6 {[%emt 0:00:00]} 63. Ke3 {[%emt 0:00:47]} Kf6 {[%emt 0:00:00]} 64. Nd7+ {[%emt 0:00:26]} Ke7 {[%emt 0:00:00]} 65. Ne5 {[%emt 0:00:44]} Ke6 {[%emt 0:00:00]} 66. Nf3 {[%emt 0:00:54]} Kf6 {[%emt 0:00:00]} 67. Kf4 {[%emt 0:00:32]} h5 {[%emt 0:00:00]} 68. Nd4 {[%emt 0:01:00]} Kg6 {[%emt 0:00:00]} 69. Nf3 {[%emt 0:00:14]} 1/2-1/2

[Event "European Womens-ch 2025"]
[Site "Rhodes"]
[Date "2025.04.05"]
[Round "6.53"]
[White "Alexandri, Dimitra"]
[Black "Nadzamova, Viktoria"]
[Result "1/2-1/2"]
[Annotator "NA"]
[ECO "E44"]
[WhiteElo "1995"]
[BlackElo "2122"]
[PlyCount "70"]
[EventDate "2025.03.29"]
[EventType "swiss"]
[EventCountry "GRE"]
[SourceTitle "playchess.com"]
[Source "ChessBase"]
[SourceQuality "1"]
[TimeControl "40/5400+30:1800+30"]

1. d4 {[%emt 0:00:03]} Nf6 {[%emt 0:00:13]} 2. c4 {[%emt 0:00:10]} e6 {[%emt 0:00:49]} 3. Nc3 {[%emt 0:00:09]} Bb4 {[%emt 0:00:38]} 4. e3 {[%emt 0:00:15]} b6 {[%emt 0:01:17]} 5. Nge2 {[%emt 0:00:15]} Ne4 {[%emt 0:01:10]} 6. Bd2 {[%emt 0:02:57]} Bxc3 {[%emt 0:04:09]} 7. Nxc3 {[%emt 0:00:44]} Nxd2 {[%emt 0:00:44]} 8. Qxd2 {[%emt 0:00:11]} Bb7 {[%emt 0:00:12]} 9. Bd3 {[%emt 0:08:29]} O-O {[%emt 0:05:12]} 10. O-O {[%emt 0:00:52]} f5 {[%emt 0:02:07]} 11. f3 {[%emt 0:06:07]} d6 {[%emt 0:01:05]} 12. e4 {[%emt 0:04:36]} f4 {[%emt 0:01:47]} 13. d5 {[%emt 0:06:47]} e5 {[%emt 0:00:40]} 14. b4 {[%emt 0:00:11]} Nd7 {[%emt 0:01:07]} 15. Na4 {[%emt 0:01:41]} Rf6 {[%emt 0:07:01]} 16. c5 {[%emt 0:05:55]} Nf8 {[%emt 0:00:30]} 17. Rfc1 {[%emt 0:04:30]} Rh6 {[%emt 0:02:59]} 18. Qf2 {[%emt 0:05:14]} Qe8 {[%emt 0:02:29]} 19. Nc3 {[%emt 0:01:58]} Qh5 {[%emt 0:02:03]} 20. h3 {[%emt 0:01:36]} Ng6 {[%emt 0:07:08]} 21. Nb5 {[%emt 0:05:40]} Nh4 {[%emt 0:05:33]} 22. Bf1 {[%emt 0:07:52]} Rg6 {[%emt 0:13:44]} 23. Kh2 {[%emt 0:04:33]} bxc5 {[%emt 0:07:53]} 24. bxc5 {[%emt 0:01:39]} Bc8 {[%emt 0:02:05]} 25. Rc3 {[%emt 0:13:24]} Rg3 {[%emt 0:04:12]} 26. Nxc7 {[%emt 0:05:20]} Nxg2 {[%emt 0:00:36]} 27. Bxg2 {[%emt 0:01:07]} Bxh3 {[%emt 0:00:08]} 28. Qxg3 {[%emt 0:01:12]} Bxg2+ {[%emt 0:00:50]} 29. Kxg2 {[%emt 0:00:20]} fxg3 {[%emt 0:00:05]} 30. Rh1 {[%emt 0:02:22]} Qg5 {[%emt 0:00:07]} 31. Rc2 {[%emt 0:01:06]} Rc8 {[%emt 0:06:01]} 32. cxd6 {[%emt 0:00:13]} Qd8 {[%emt 0:05:37]} 33. Rc6 {[%emt 0:00:46]} Qg5 {[%emt 0:00:43]} 34. Rc2 {[%emt 0:03:12]} Qd8 {[%emt 0:00:29]} 35. Rc6 {[%emt 0:02:05]} Qg5 {[%emt 0:00:14]} 1/2-1/2

[Event "European Womens-ch 2025"]
[Site "Rhodes"]
[Date "2025.04.05"]
[Round "6.54"]
[White "Golsta, Madara"]
[Black "Koridze, Lile"]
[Result "0-1"]
[Annotator "ChessBase"]
[ECO "B92"]
[WhiteElo "1979"]
[BlackElo "2115"]
[PlyCount "158"]
[EventDate "2025.03.29"]
[EventType "swiss"]
[EventCountry "GRE"]
[SourceTitle "playchess.com"]
[Source "ChessBase"]
[SourceQuality "1"]
[TimeControl "40/5400+30:1800+30"]

1. e4 {[%emt 0:00:03]} c5 {[%emt 0:00:04]} 2. Nf3 {[%emt 0:00:06]} d6 {[%emt 0:00:05]} 3. d4 {[%emt 0:00:11]} cxd4 {[%emt 0:00:03]} 4. Nxd4 {[%emt 0:00:06]} Nf6 {[%emt 0:00:04]} 5. Nc3 {[%emt 0:00:12]} a6 {[%emt 0:00:03]} 6. Be2 {[%emt 0:00:09]} e5 {[%emt 0:00:05]} 7. Nb3 {[%emt 0:00:09]} Be6 {[%emt 0:02:08]} 8. Bg5 {[%emt 0:05:11]} Nbd7 {[%emt 0:03:22]} 9. Nd5 {[%emt 0:13:36]} h6 {[%emt 0:11:12]} 10. Nxf6+ {[%emt 0:06:32]} Nxf6 {[%emt 0:00:07]} 11. Bxf6 {[%emt 0:01:08]} Qxf6 {[%emt 0:00:05]} 12. c4 {[%emt 0:01:59]} Qg6 {[%emt 0:08:32]} 13. O-O {[%emt 0:03:51]} Be7 {[%emt 0:01:59]} 14. Rc1 {[%emt 0:06:49]} O-O {[%emt 0:03:57]} 15. Bd3 {[%emt 0:05:56]} b5 {[%emt 0:17:14]} 16. Qe2 {[%emt 0:07:13]} Rfd8 {[%emt 0:06:34]} 17. Na5 {[%emt 0:07:50]} bxc4 {[%emt 0:03:15]} 18. Bxc4 {[%emt 0:00:11]} Bg5 {[%emt 0:06:36]} 19. Rcd1 {[%emt 0:06:23]} Bf4 {[%emt 0:08:28]} 20. Nc6 {[%emt 0:08:05]} Rd7 {[%emt 0:02:59]} 21. g3 {[%emt 0:05:28]} Bg4 {[%emt 0:04:34]} 22. f3 {[%emt 0:00:28]} Bh3 {[%emt 0:00:33]} 23. Rfe1 {[%emt 0:01:59]} Rc8 {[%emt 0:01:02]} 24. Bd5 {[%emt 0:03:40]} Rdc7 {[%emt 0:02:10]} 25. Kh1 {[%emt 0:01:23]} Bg5 {[%emt 0:00:56]} 26. Qxa6 {[%emt 0:01:53]} Qf6 {[%emt 0:01:28]} 27. Rd3 {[%emt 0:01:09]} Bd7 {[%emt 0:01:28]} 28. Nb4 {[%emt 0:03:33]} Rc5 {[%emt 0:09:07]} 29. Bb7 {[%emt 0:04:00]} Bb5 {[%emt 0:01:21]} 30. Qxd6 {[%emt 0:01:07]} Rc1 {[%emt 0:00:26]} 31. Qxf6 {[%emt 0:04:04]} Rxe1+ {[%emt 0:00:12]} 32. Kg2 {[%emt 0:00:04]} Bxf6 {[%emt 0:01:46]} 33. Bxc8 {[%emt 0:00:18]} Bxd3 {[%emt 0:00:04]} 34. Nxd3 {[%emt 0:00:08]} Re2+ {[%emt 0:01:12]} 35. Kf1 {[%emt 0:00:20]} Rc2 {[%emt 0:01:11]} 36. Ba6 {[%emt 0:00:24]} Bg5 {[%emt 0:00:58]} 37. Nxe5 {[%emt 0:02:10]} Bf6 {[%emt 0:01:40]} 38. Nd3 {[%emt 0:01:00]} Bxb2 {[%emt 0:00:31]} 39. h4 {[%emt 0:00:16]} Ba3 {[%emt 0:00:15]} 40. Ne5 {[%emt 0:00:00]} Bd6 {[%emt 0:00:00]} 41. f4 {[%emt 0:12:44]} Bxe5 {[%emt 0:09:08]} 42. fxe5 {[%emt 0:01:04]} Rxa2 {[%emt 0:00:06]} 43. Bc4 {[%emt 0:00:19]} Rc2 {[%emt 0:00:23]} 44. Bd5 {[%emt 0:02:15]} Kf8 {[%emt 0:00:26]} 45. e6 {[%emt 0:07:32]} f6 {[%emt 0:01:26]} 46. Kg1 {[%emt 0:01:13]} g6 {[%emt 0:04:33]} 47. g4 {[%emt 0:02:35]} Ke7 {[%emt 0:03:11]} 48. h5 {[%emt 0:01:39]} gxh5 {[%emt 0:00:11]} 49. gxh5 {[%emt 0:00:04]} Rd2 {[%emt 0:00:36]} 50. Kh1 {[%emt 0:02:40]} Kd6 {[%emt 0:02:20]} 51. Kg1 {[%emt 0:01:45]} f5 {[%emt 0:00:16]} 52. Bb7 {[%emt 0:00:29]} Rb2 {[%emt 0:05:03]} 53. Bd5 {[%emt 0:00:16]} Rb5 {[%emt 0:00:12]} 54. Kf2 {[%emt 0:02:12]} fxe4 {[%emt 0:02:09]} 55. Bxe4 {[%emt 0:00:09]} Rxh5 {[%emt 0:00:08]} 56. Bg2 {[%emt 0:01:13]} Kxe6 {[%emt 0:00:09]} 57. Kg3 {[%emt 0:00:03]} Ra5 {[%emt 0:00:41]} 58. Kh4 {[%emt 0:00:14]} Rg5 {[%emt 0:00:30]} 59. Bf3 {[%emt 0:00:14]} Kf5 {[%emt 0:00:27]} 60. Bb7 {[%emt 0:01:00]} Kf4 {[%emt 0:01:09]} 61. Bc6 {[%emt 0:00:21]} Rc5 {[%emt 0:00:36]} 62. Bb7 {[%emt 0:01:09]} Rc2 {[%emt 0:00:16]} 63. Kh3 {[%emt 0:00:08]} h5 {[%emt 0:00:40]} 64. Bd5 {[%emt 0:00:41]} Kg5 {[%emt 0:02:18]} 65. Be6 {[%emt 0:00:47]} Rc3+ {[%emt 0:01:03]} 66. Kh2 {[%emt 0:00:07]} h4 {[%emt 0:00:19]} 67. Bd7 {[%emt 0:00:14]} Rd3 {[%emt 0:01:55]} 68. Bc8 {[%emt 0:00:10]} Rd8 {[%emt 0:01:11]} 69. Be6 {[%emt 0:00:11]} Kf6 {[%emt 0:00:08]} 70. Bg4 {[%emt 0:00:12]} Ke5 {[%emt 0:00:13]} 71. Kh3 {[%emt 0:00:28]} Kf4 {[%emt 0:00:57]} 72. Be2 {[%emt 0:00:51]} Rd2 {[%emt 0:00:57]} 73. Bb5 {[%emt 0:00:29]} Rd1 {[%emt 0:00:11]} 74. Bc6 {[%emt 0:00:12]} Rd3+ {[%emt 0:00:07]} 75. Kh2 {[%emt 0:00:30]} Kg4 {[%emt 0:00:11]} 76. Bb7 {[%emt 0:00:56]} Rd2+ {[%emt 0:00:04]} 77. Kg1 {[%emt 0:00:06]} Kg3 {[%emt 0:00:04]} 78. Ba6 {[%emt 0:00:10]} Rd1+ {[%emt 0:00:03]} 79. Bf1 {[%emt 0:00:04]} Rc1 {[%emt 0:00:06]} 0-1

[Event "European Womens-ch 2025"]
[Site "Rhodes"]
[Date "2025.04.05"]
[Round "6.55"]
[White "Nahapetyan, Ani"]
[Black "Heinatz, Gundula"]
[Result "0-1"]
[Annotator "NA"]
[ECO "B06"]
[WhiteElo "1887"]
[BlackElo "2111"]
[PlyCount "106"]
[EventDate "2025.03.29"]
[EventType "swiss"]
[EventCountry "GRE"]
[SourceTitle "playchess.com"]
[Source "ChessBase"]
[SourceQuality "1"]
[TimeControl "40/5400+30:1800+30"]

1. e4 {[%emt 1:31:00]} g6 {[%emt 1:31:00]} 2. d4 {[%emt 0:00:30]} Bg7 {[%emt 0:00:30]} 3. Nf3 {[%emt 0:00:30]} d6 {[%emt 0:00:30]} 4. Nc3 {[%emt 0:00:30]} a6 {[%emt 0:00:30]} 5. a4 {[%emt 0:00:30]} Nc6 {[%emt 0:00:30]} 6. Be3 {[%emt 0:00:30]} Bg4 {[%emt 0:00:30]} 7. Be2 {[%emt 0:00:30]} e5 {[%emt 0:00:30]} 8. d5 {[%emt 0:00:30]} Bxf3 {[%emt 0:00:30]} 9. Bxf3 {[%emt 0:00:30]} Nd4 {[%emt 0:00:30]} 10. Bxd4 {[%emt 0:00:30]} exd4 {[%emt 0:00:30]} 11. Ne2 {[%emt 0:00:30]} Qf6 {[%emt 0:00:30]} 12. Qd3 {[%emt 0:00:30]} Ne7 {[%emt 0:00:30]} 13. O-O {[%emt 0:00:30]} O-O {[%emt 0:00:30]} 14. b4 {[%emt 0:00:30]} c6 {[%emt 0:00:30]} 15. Rfd1 {[%emt 0:00:30]} Qg5 {[%emt 0:00:30]} 16. Rab1 {[%emt 0:00:30]} cxd5 {[%emt 0:00:30]} 17. Nxd4 {[%emt 0:00:30]} Rac8 {[%emt 0:00:30]} 18. c3 {[%emt 0:00:30]} Rc7 {[%emt 0:00:30]} 19. b5 {[%emt 0:00:30]} a5 {[%emt 0:00:30]} 20. b6 {[%emt 0:00:30]} Rc5 {[%emt 0:00:30]} 21. Ne2 {[%emt 0:00:30]} Nc6 {[%emt 0:00:30]} 22. exd5 {[%emt 0:00:30]} Ne5 {[%emt 0:00:30]} 23. Qe3 {[%emt 0:00:30]} Qxe3 {[%emt 0:00:30]} 24. fxe3 {[%emt 0:00:30]} Bh6 {[%emt 0:00:30]} 25. Kf2 {[%emt 0:00:30]} Re8 {[%emt 0:00:30]} 26. e4 Nc4 {[%emt 0:00:30]} 27. Ng3 Nd2 {[%emt 0:00:30]} 28. Rb2 Nxf3 {[%emt 0:00:30]} 29. gxf3 Rxc3 {[%emt 0:00:30]} 30. Rb5 Rc2+ {[%emt 0:00:30]} 31. Ne2 f5 {[%emt 0:00:30]} 32. Rxa5 fxe4 33. fxe4 {[%emt 0:04:00]} Rxe4 {[%emt 0:01:00]} 34. Ra8+ {[%emt 0:00:30]} Kg7 {[%emt 0:00:30]} 35. Re1 {[%emt 0:00:30]} Re7 {[%emt 0:00:30]} 36. Kf1 {[%emt 0:00:30]} Be3 {[%emt 0:00:30]} 37. Rd8 {[%emt 0:00:30]} Rf7+ {[%emt 0:00:30]} 38. Kg2 {[%emt 0:00:30]} Bf2 {[%emt 0:00:30]} 39. Rf1 {[%emt 0:00:30]} Rxe2 {[%emt 0:00:30]} 40. Kh1 {[%emt 0:00:30]} Bc5 {[%emt 0:00:30]} 41. Rxf7+ {[%emt 0:30:30]} Kxf7 {[%emt 0:30:30]} 42. a5 {[%emt 0:00:30]} Ra2 {[%emt 0:00:30]} 43. Rd7+ {[%emt 0:00:30]} Kf6 {[%emt 0:00:30]} 44. Rxb7 {[%emt 0:00:30]} Rxa5 {[%emt 0:00:30]} 45. Rd7 {[%emt 0:00:30]} Rb5 {[%emt 0:00:30]} 46. b7 {[%emt 0:00:30]} Ke5 {[%emt 0:00:30]} 47. Rxh7 {[%emt 0:00:30]} Kxd5 {[%emt 0:00:30]} 48. Rg7 {[%emt 0:00:30]} Kc6 {[%emt 0:00:30]} 49. Rxg6 {[%emt 0:00:30]} Rxb7 {[%emt 0:00:30]} 50. Kg2 {[%emt 0:00:30]} Rb2+ {[%emt 0:00:30]} 51. Kg3 {[%emt 0:00:30]} Kd5 {[%emt 0:00:30]} 52. h4 Bf2+ {[%emt 0:00:30]} 53. Kh3 Rb3+ {[%emt 0:00:30]} 0-1

[Event "European Womens-ch 2025"]
[Site "Rhodes"]
[Date "2025.04.05"]
[Round "6.56"]
[White "Chasouraki, Chrysi"]
[Black "Grapsa, Georgia"]
[Result "1/2-1/2"]
[Annotator "ChessBase"]
[ECO "B48"]
[WhiteElo "1843"]
[BlackElo "2065"]
[PlyCount "83"]
[EventDate "2025.03.29"]
[EventType "swiss"]
[EventCountry "GRE"]
[SourceTitle "playchess.com"]
[Source "ChessBase"]
[SourceQuality "1"]
[TimeControl "40/5400+30:1800+30"]

1. e4 {[%emt 0:02:02]} c5 {[%emt 0:00:04]} 2. Nf3 {[%emt 0:00:04]} e6 {[%emt 0:00:03]} 3. d4 {[%emt 0:00:05]} cxd4 {[%emt 0:00:04]} 4. Nxd4 {[%emt 0:00:06]} Nc6 {[%emt 0:00:03]} 5. Nc3 {[%emt 0:00:10]} Qc7 {[%emt 0:00:04]} 6. Be3 {[%emt 0:00:06]} a6 {[%emt 0:00:02]} 7. Bd3 {[%emt 0:00:36]} Nf6 {[%emt 0:00:28]} 8. Qe2 {[%emt 0:00:14]} b5 {[%emt 0:01:31]} 9. Nxc6 {[%emt 0:00:11]} dxc6 {[%emt 0:00:35]} 10. O-O {[%emt 0:00:16]} Bd6 {[%emt 0:03:32]} 11. f4 {[%emt 0:00:26]} e5 {[%emt 0:00:41]} 12. f5 {[%emt 0:00:04]} Bb7 {[%emt 0:01:21]} 13. g4 {[%emt 0:01:23]} h6 {[%emt 0:01:43]} 14. a4 {[%emt 0:02:20]} Qe7 {[%emt 0:09:32]} 15. h4 {[%emt 0:16:43]} Bc5 {[%emt 0:07:37]} 16. Nd1 {[%emt 0:09:33]} h5 {[%emt 0:13:19]} 17. g5 {[%emt 0:03:48]} Ng4 {[%emt 0:00:05]} 18. Bxc5 {[%emt 0:09:47]} Qxc5+ {[%emt 0:00:04]} 19. Kh1 {[%emt 0:01:25]} g6 {[%emt 0:13:13]} 20. Rf3 {[%emt 0:16:04]} O-O-O {[%emt 0:05:27]} 21. Ra3 {[%emt 0:10:46]} Rd7 {[%emt 0:13:38]} 22. axb5 {[%emt 0:05:20]} axb5 {[%emt 0:00:06]} 23. Ne3 {[%emt 0:06:04]} Kb8 {[%emt 0:04:19]} 24. Rg3 {[%emt 0:08:05]} Nxe3 {[%emt 0:03:08]} 25. Qxe3 {[%emt 0:04:30]} Qxe3 {[%emt 0:05:42]} 26. Rxe3 {[%emt 0:00:03]} gxf5 {[%emt 0:02:15]} 27. exf5 {[%emt 0:00:12]} c5+ {[%emt 0:00:08]} 28. Kg1 {[%emt 0:02:29]} c4 {[%emt 0:03:09]} 29. Be4 {[%emt 0:01:10]} Rd1+ {[%emt 0:01:14]} 30. Kg2 {[%emt 0:00:44]} Rd2+ {[%emt 0:06:37]} 31. Kf3 {[%emt 0:00:31]} Rxc2 {[%emt 0:04:09]} 32. Bxb7 {[%emt 0:00:24]} Kxb7 {[%emt 0:00:03]} 33. Rxe5 {[%emt 0:00:46]} Rxb2 {[%emt 0:00:04]} 34. Re7+ {[%emt 0:00:10]} Kb6 {[%emt 0:00:04]} 35. Rxf7 {[%emt 0:00:43]} b4 {[%emt 0:03:10]} 36. Raa7 {[%emt 0:00:18]} Rd8 {[%emt 0:00:18]} 37. Rfb7+ {[%emt 0:00:43]} Kc6 {[%emt 0:00:21]} 38. Rc7+ {[%emt 0:00:08]} Kb6 {[%emt 0:00:16]} 39. Rab7+ {[%emt 0:00:13]} Ka6 {[%emt 0:00:06]} 40. Ra7+ {[%emt 0:00:00]} Kb6 {[%emt 0:00:00]} 41. Rab7+ {[%emt 0:10:23]} Ka6 {[%emt 0:00:39]} 42. Ra7+ {[%emt 0:22:25]} 1/2-1/2